bitfinex/quotes_SOLUSD_20251207
["timestamp","ask_amount","ask_price","bid_price","bid_amount"]
[1765117400557,16.31755417,130.59,130.49,0.66]
[1765117400558,9.48994492,130.58,130.49,0.66]
[1765117400729,8.80994492,130.57,130.49,0.66]
[1765117400933,7.65931372,130.56,130.49,0.66]
[1765117401149,16.308864,130.52,130.45,0.68]
[1765117401466,8.66,130.51,130.46,0.68]
[1765117401875,8.66,130.51,130.47,7.66456634]
[1765117402041,8.66,130.54,130.48,7.66397621]
[1765117402362,8.66,130.58,130.49,8.34317576]
[1765117402669,9.32,130.58,130.49,8.34317576]
[1765117402869,9.32,130.58,130.5,0.68]
[1765117403049,8.66,130.58,130.5,8.34225024]
[1765117403251,16.31834381,130.58,130.5,8.34225024]
[1765117403453,16.31834381,130.58,130.51,0.68]
[1765117404862,8.66,130.58,130.51,8.34219801]
[1765117405273,8.66,130.58,130.52,0.68]
[1765117406360,16.31822286,130.58,130.52,0.68]
[1765117406669,16.31822286,130.58,130.47,8.80994492]
[1765117406852,16.31822286,130.58,130.46,35.47085244]
[1765117406853,16.308864,130.53,130.46,0.68]
[1765117407058,8.66,130.52,130.47,0.68]
[1765117407475,9.32,130.52,130.47,0.68]
[1765117407785,8.66,130.52,130.47,0.68]
[1765117408148,8.66,130.55,130.5,7.66278462]
[1765117408348,8.66,130.59,130.49,26.8214613]
[1765117408578,16.97767971,130.59,130.49,27.5014613]
[1765117408771,33.28654371,130.59,130.5,0.68]
[1765117408970,8.66,130.59,130.5,0.68]
[1765117409247,16.31776901,130.59,130.5,0.68]
[1765117409449,8.66,130.59,130.5,0.68]
[1765117409672,8.66,130.58,130.5,0.68]
[1765117410195,9.32,130.58,130.5,0.68]
[1765117410549,16.97837956,130.58,130.5,8.3426902]
[1765117410775,8.66,130.58,130.51,0.68]
[1765117411479,16.31827116,130.58,130.51,0.68]
[1765117411686,8.66,130.58,130.51,0.68]
[1765117413861,8.66,130.58,130.51,8.34212111]
[1765117414090,16.9782688,130.58,130.51,0.68]
[1765117414261,16.308864,130.57,130.52,0.68]
[1765117415151,8.66,130.58,130.52,0.68]
[1765117416086,8.66,130.58,130.52,8.34158398]
[1765117416451,15.808864,130.59,130.53,0.68]
[1765117416887,16.95645407,130.61,130.53,0.68]
[1765117417088,16.95645407,130.61,130.53,8.34065681]
[1765117417455,16.95645407,130.61,130.54,0.68]
[1765117417655,27.94688455,130.64,130.54,0.68]
[1765117417656,0.66,130.64,130.54,0.68]
[1765117417898,8.64,130.65,130.54,0.68]
[1765117418395,16.308864,130.64,130.54,9.32]
[1765117418699,15.808864,130.64,130.54,9.32]
[1765117419000,15.808864,130.64,130.55,0.68]
[1765117419202,23.46353579,130.64,130.56,7.65931372]
[1765117419701,23.46353579,130.64,130.57,0.68]
[1765117419866,0.66,130.63,130.51,27.79522047]
[1765117420068,0.66,130.63,130.54,0.68]
[1765117420486,0.66,130.63,130.54,8.34046732]
[1765117420973,0.66,130.63,130.55,0.68]
[1765117421173,23.96650373,130.59,130.5,19.15653237]
[1765117421383,16.308864,130.59,130.53,0.68]
[1765117421605,16.968864,130.59,130.53,0.68]
[1765117421984,24.62646274,130.59,130.53,0.68]
[1765117422190,16.968864,130.59,130.53,0.68]
[1765117422394,24.62644377,130.59,130.53,0.68]
[1765117422892,0.66,130.58,130.51,0.68]
[1765117423401,8.31841559,130.58,130.51,0.68]
[1765117423583,16.308864,130.59,130.51,8.34188732]
[1765117423977,16.308864,130.59,130.52,0.68]
[1765117424174,23.96644581,130.59,130.52,0.68]
[1765117424391,24.62644581,130.59,130.52,0.68]
[1765117424892,0.66,130.58,130.52,0.68]
[1765117425282,111.9587271,130.57,130.5,0.68]
[1765117425492,8.64,130.56,130.5,0.68]
[1765117426071,8.64,130.56,130.5,8.34269054]
[1765117426479,8.64,130.56,130.51,0.68]
[1765117426974,0.66,130.56,130.51,0.68]
[1765117427301,104.29999999,130.57,130.51,0.68]
[1765117427873,104.95999999,130.56,130.49,0.68]
[1765117428198,112.93999999,130.55,130.47,0.66]
[1765117428395,16.308864,130.51,130.45,8.32563271]
[1765117428594,24.948864,130.51,130.45,8.32563271]
[1765117429298,24.948864,130.51,130.43,19.16622143]
[1765117429509,0.72,130.5,130.43,0.66]
[1765117429685,0.72,130.5,130.44,0.66]
[1765117430404,24.948864,130.51,130.44,0.66]
[1765117430708,8.64,130.51,130.44,0.66]
[1765117431313,8.64,130.51,130.45,7.66577232]
[1765117431682,24.948864,130.54,130.46,0.66]
[1765117431876,8.64,130.54,130.47,8.80994492]
[1765117432321,9.35,130.54,130.48,0.66]
[1765117432518,75.99999999,130.63,130.48,0.66]
[1765117432519,0.71,130.59,130.49,8.80994492]
[1765117432693,8.64,130.63,130.49,33.75880892]
[1765117432896,8.64,130.63,130.53,8.80994492]
[1765117433100,9.35,130.63,130.53,8.80994492]
[1765117433398,9.35,130.63,130.55,35.61959639]
[1765117433796,9.35,130.63,130.56,0.66]
[1765117434624,8.64,130.63,130.56,0.66]
[1765117435735,0.71,130.62,130.56,8.3191173]
[1765117436018,0.71,130.62,130.56,7.6591173]
[1765117436183,0.71,130.62,130.54,0.66]
[1765117436391,0.71,130.62,130.54,8.31995723]
[1765117436593,0.71,130.62,130.54,0.66]
[1765117436895,0.71,130.62,130.55,0.66]
[1765117437704,0.71,130.62,130.56,7.65929704]
[1765117437910,0.71,130.62,130.55,8.31973666]
[1765117438418,0.71,130.61,130.55,7.65973666]
[1765117438721,16.308864,130.6,130.52,0.66]
[1765117439015,8.64,130.59,130.52,0.66]
[1765117439189,9.35,130.59,130.52,0.66]
[1765117439387,8.64,130.59,130.52,0.66]
[1765117439812,8.64,130.59,130.53,7.66107408]
[1765117440023,9.35,130.59,130.53,7.66107408]
[1765117440386,9.35,130.59,130.53,8.32107408]
[1765117440914,0.7,130.58,130.53,0.66]
[1765117441818,0.7,130.58,130.5,19.15690912]
[1765117441819,8.35819686,130.58,130.5,7.66277864]
[1765117442193,0.7,130.57,130.49,0.7]
[1765117442399,104.29999999,130.56,130.49,0.7]
[1765117442607,8.64,130.55,130.49,0.7]
[1765117442823,9.34,130.55,130.49,8.36334942]
[1765117443010,0.7,130.54,130.49,8.36334942]
[1765117443210,8.80994492,130.53,130.46,0.7]
[1765117443514,8.80994492,130.53,130.38,4.00275378]
[1765117443515,8.80994492,130.53,130.44,8.36625822]
[1765117443700,0.7,130.52,130.44,8.36625822]
[1765117444020,8.64,130.51,130.44,8.36625822]
[1765117444526,9.34,130.51,130.44,7.66625822]
[1765117444816,9.34,130.51,130.45,0.7]
[1765117445015,9.34,130.51,130.39,0.8]
[1765117445016,16.308864,130.48,130.39,0.8]
[1765117445192,9.34,130.47,130.39,0.8]
[1765117445617,16.308864,130.44,130.39,0.1]
[1765117445919,8.64,130.43,130.39,0.1]
[1765117446234,19.86405392,130.46,130.39,0.8]
[1765117446235,24.948864,130.46,130.39,0.8]
[1765117446403,25.648864,130.46,130.39,0.8]
[1765117446598,8.64,130.46,130.39,0.8]
[1765117446905,8.64,130.46,130.39,0.3]
[1765117447102,24.948864,130.49,130.39,8.80994492]
[1765117447318,0.7,130.48,130.39,8.80994492]
[1765117447797,0.7,130.48,130.4,26.84049079]
[1765117448121,0.7,130.48,130.41,8.80994492]
[1765117448430,0.7,130.48,130.4,26.84049079]
[1765117448722,8.80994492,130.47,130.32,38.36418615]
[1765117448935,16.308864,130.45,130.38,7.6698642]
[1765117449101,24.968864,130.45,130.39,7.66908561]
[1765117449298,0.7,130.44,130.39,7.66908561]
[1765117449722,0.7,130.44,130.39,8.36908561]
[1765117449902,0.7,130.44,130.36,0.7]
[1765117450721,32.63465654,130.45,130.36,0.7]
[1765117450722,24.968864,130.45,130.36,0.7]
[1765117450924,8.66,130.45,130.37,8.80994492]
[1765117451221,8.66,130.45,130.36,0.7]
[1765117451402,9.36,130.45,130.36,0.7]
[1765117451603,0.7,130.44,130.36,0.7]
[1765117452019,0.7,130.44,130.36,8.37048476]
[1765117452218,24.67528341,130.44,130.35,7.67149329]
[1765117452399,16.308864,130.4,130.3,0.1]
[1765117452602,16.308864,130.4,130.3,7.77446663]
[1765117452603,8.66,130.39,130.3,7.77446663]
[1765117452799,16.308864,130.38,130.3,7.77448757]
[1765117453006,17.008864,130.38,130.3,7.77448757]
[1765117453194,0.7,130.37,130.3,0.1]
[1765117453400,105.0,130.37,130.3,0.1]
[1765117453898,0.7,130.36,130.3,0.1]
[1765117454123,17.008864,130.34,130.3,0.1]
[1765117454324,16.308864,130.32,130.18,2.57774806]
[1765117454536,0.99999999,130.24,130.18,1.96774806]
[1765117454700,9.65999999,130.23,130.18,1.96774806]
[1765117454904,0.99999999,130.21,130.18,1.96774806]
[1765117455114,8.80994492,130.21,130.18,1.96774806]
[1765117455321,8.80994492,130.21,129.99,0.7]
[1765117455510,8.80994492,130.17,130.02,19.22719397]
[1765117455715,75.0,130.15,130.04,26.91457977]
[1765117455928,8.80994492,130.14,130.02,26.91893554]
[1765117456148,8.80994492,130.14,130.02,27.61893554]
[1765117456311,8.7,130.13,130.03,0.7]
[1765117456511,8.80994492,130.2,130.03,0.7]
[1765117456836,75.0,130.21,130.03,0.7]
[1765117456837,75.0,130.21,130.07,16.308864]
[1765117457005,8.74,130.2,130.09,0.99999999]
[1765117457206,8.74,130.24,130.13,16.308864]
[1765117457405,7.6763719,130.27,130.05,0.99999999]
[1765117457654,16.308864,130.24,130.09,8.75825606]
[1765117457811,75.0,130.17,130.04,0.99999999]
[1765117458025,8.88,130.21,130.05,26.91272586]
[1765117458211,8.88,130.21,130.07,0.99999999]
[1765117458405,8.88,130.21,130.08,8.54706372]
[1765117458607,16.55994838,130.21,130.08,8.54706372]
[1765117458910,16.55994838,130.21,130.05,26.91272586]
[1765117458911,83.88,130.21,130.09,0.7]
[1765117459118,8.88,130.21,130.09,0.7]
[1765117459328,83.88,130.21,130.09,0.7]
[1765117459621,75.0,130.13,130.03,0.7]
[1765117459952,75.0,130.17,130.04,8.38966093]
[1765117459953,8.92,130.12,130.04,8.38966093]
[1765117460111,8.92,130.12,129.97,0.7]
[1765117460112,150.0,130.08,129.97,0.7]
[1765117460307,91.308864,130.06,129.95,7.51001593]
[1765117460530,8.94,130.07,129.95,7.51001593]
[1765117460740,92.30886399,130.06,129.95,7.51001593]
[1765117461044,83.94,130.07,129.95,7.51001593]
[1765117461045,16.308864,130.04,129.95,7.51001593]
[1765117461203,16.308864,130.01,129.95,7.51001593]
[1765117461640,8.96,130.03,129.95,8.22001593]
[1765117461837,0.99999999,130.1,129.97,0.71]
[1765117461838,8.96,130.06,129.97,0.71]
[1765117462009,8.96,130.06,130.0,104.884289]
[1765117462211,0.99999999,130.11,130.0,104.174289]
[1765117462409,8.98,130.1,130.0,104.174289]
[1765117462707,92.30886399,130.06,130.0,104.174289]
[1765117462929,16.308864,130.01,130.0,104.174289]
[1765117463125,8.98,130.01,130.0,104.174289]
[1765117463507,8.98,130.07,130.0,104.884289]
[1765117463708,76.68516928,130.41,130.0,104.884289]
[1765117463709,150.0,130.2,130.04,16.308864]
[1765117463945,7.68108149,130.19,130.05,7.68935024]
[1765117464240,7.68108149,130.19,130.06,9.69]
[1765117464413,7.68108149,130.19,130.07,0.71]
[1765117464607,8.98,130.21,130.07,0.71]
[1765117464608,7.68049931,130.2,130.07,17.018864]
[1765117464810,7.68049931,130.2,130.08,16.308864]
[1765117465123,26.88172818,130.2,130.08,0.71]
[1765117465433,26.88172818,130.2,130.09,0.71]
[1765117466137,16.308864,130.17,130.09,0.71]
[1765117466720,8.98,130.16,130.06,0.71]
[1765117466922,8.98,130.16,130.05,9.69]
[1765117467337,8.98,130.16,130.06,0.71]
[1765117467720,8.80994492,130.11,130.02,0.71]
[1765117467929,8.80994492,130.11,130.0,113.154289]
[1765117468115,16.308864,130.06,130.0,104.174289]
[1765117468852,25.11880892,130.01,130.0,104.174289]
[1765117469051,25.11880892,130.01,130.0,57.19175771]
[1765117469052,34.09880892,130.01,130.0,57.19175771]
[1765117469338,0.99999999,129.91,129.87,0.1]
[1765117469527,75.0,130.0,129.81,3.82824885]
[1765117469528,0.99999999,129.84,129.81,3.82824885]
[1765117469743,16.308864,129.8,129.7,4.00713134]
[1765117469928,0.15,129.78,129.61,19.99816099]
[1765117470124,16.308864,129.75,129.62,0.71]
[1765117470317,0.15000001,129.69,129.6,9.24]
[1765117470644,0.15000001,129.62,129.54,4.02747278]
[1765117470810,0.15000001,129.66,129.55,9.24]
[1765117471010,0.15000001,129.66,129.51,5.55435492]
[1765117471011,0.15000001,129.68,129.51,5.55435492]
[1765117471216,8.95994493,129.68,129.59,7.71628182]
[1765117471430,8.95994493,129.68,129.56,19.29494289]
[1765117471431,75.0,129.74,129.61,7.71543263]
[1765117471627,8.80994492,129.75,129.65,16.308864]
[1765117471830,8.80994492,129.83,129.65,16.308864]
[1765117472148,0.66,129.83,129.69,16.308864]
[1765117472326,0.15000001,129.78,129.7,8.80994492]
[1765117472534,0.15000001,129.75,129.7,0.71]
[1765117472846,9.92,129.82,129.56,4.02644385]
[1765117472847,0.15000001,129.73,129.56,4.02644385]
[1765117473013,0.15000001,129.73,128.99,16.86714728]
[1765117473014,83.80994492,129.77,129.65,7.71247984]
[1765117473209,75.0,129.8,129.68,16.308864]
[1765117473455,4.6668139,129.85,129.72,16.308864]
[1765117473456,0.15000001,129.82,129.72,16.308864]
[1765117473630,4.0068139,129.85,129.76,16.308864]
[1765117473813,0.15000001,129.83,129.76,16.308864]
[1765117474015,4.0068139,129.85,129.79,16.308864]
[1765117474430,4.0068139,129.85,129.8,0.71]
[1765117474631,4.0068139,129.85,129.81,8.80994492]
[1765117474833,4.0068139,129.85,129.8,0.71]
[1765117474834,4.15681391,129.85,129.8,0.71]
[1765117475036,4.0068139,129.85,129.81,25.11880892]
[1765117475336,0.15000001,129.83,129.78,7.70534751]
[1765117475515,75.0,129.91,129.78,7.70534751]
[1765117475516,0.15000001,129.89,129.79,0.71]
[1765117475718,0.15000001,129.88,129.81,16.308864]
[1765117475921,0.15000001,129.93,129.82,17.018864]
[1765117476149,9.94,129.95,129.83,26.95833011]
[1765117476150,0.15000001,129.92,129.83,26.95833011]
[1765117476327,0.15000001,129.76,129.57,98.7745879]
[1765117476535,0.15000001,129.77,129.69,0.71]
[1765117476746,0.15000001,129.79,129.69,0.71]
[1765117477042,0.15000001,129.77,129.69,0.71]
[1765117477248,0.15000001,129.78,129.69,0.71]
[1765117477415,0.15000001,129.79,129.7,8.80994492]
[1765117477622,0.15000001,129.83,129.7,8.80994492]
[1765117477841,0.15000001,129.88,129.76,8.80994492]
[1765117478027,0.15000001,129.83,129.77,7.70594128]
[1765117478234,0.15000001,129.84,129.77,7.70594128]
[1765117478428,16.45886401,129.86,129.78,0.71]
[1765117478629,0.15000001,129.89,129.79,8.80994492]
[1765117478826,0.15000001,129.92,129.81,8.80994492]
[1765117479026,34.1598545,129.94,129.81,8.80994492]
[1765117479240,0.15000001,129.91,129.82,0.71]
[1765117479456,34.00985449,129.94,129.83,8.80994492]
[1765117479634,34.00985449,129.94,129.82,17.018864]
[1765117479635,0.15000001,129.9,129.84,0.71]
[1765117479838,0.15000001,129.93,129.84,0.71]
[1765117480039,0.15000001,129.88,129.81,17.018864]
[1765117480343,0.15000001,129.86,129.78,16.308864]
[1765117480683,0.15000001,129.86,129.75,8.80994492]
[1765117480840,25.11880892,129.9,129.75,8.80994492]
[1765117480841,0.15000001,129.85,129.79,0.71]
[1765117481027,109.00985449,129.94,129.79,0.71]
[1765117481028,0.15000001,129.88,129.8,8.80994492]
[1765117481231,0.66,129.92,129.79,0.71]
[1765117481232,0.15000001,129.84,129.79,0.71]
[1765117481526,0.15000001,129.83,129.79,0.71]
[1765117481723,0.15000001,129.82,129.75,0.71]
[1765117482158,0.15000001,129.75,129.69,7.7106561]
[1765117482525,0.15000001,129.77,129.7,0.71]
[1765117482722,0.15000001,129.73,129.7,0.71]
[1765117482928,0.15000001,129.75,129.7,0.71]
[1765117483143,0.15000001,129.8,129.7,27.69526503]
[1765117483352,0.15000001,129.77,129.7,8.42001446]
[1765117483532,0.15000001,129.76,129.71,0.71]
[1765117483729,0.15000001,129.79,129.71,0.71]
[1765117483934,0.15000001,129.78,129.71,0.71]
[1765117484130,0.15000001,129.81,129.73,7.70831727]
[1765117484355,0.15000001,129.85,129.74,8.80994492]
[1765117484533,0.15000001,129.83,129.74,9.51994492]
[1765117484750,94.24436841,129.91,129.76,8.80994492]
[1765117484751,0.15000001,129.87,129.76,8.80994492]
[1765117484927,0.15000001,129.88,129.76,25.11880892]
[1765117485131,0.15000001,129.88,129.77,0.71]
[1765117485349,0.15000001,129.83,129.77,0.71]
[1765117485780,0.15000001,129.8,129.73,8.41831727]
[1765117485956,0.15000001,129.81,129.74,0.71]
[1765117486158,0.15000001,129.76,129.71,0.71]
[1765117486669,0.15000001,129.77,129.72,28.08204456]
[1765117486871,0.15000001,129.84,129.75,8.80994492]
[1765117487054,0.15000001,129.88,129.75,8.80994492]
[1765117487256,0.15000001,129.84,129.76,0.71]
[1765117487556,0.15000001,129.84,129.77,8.80994492]
[1765117487938,0.15000001,129.84,129.78,9.51994492]
[1765117488140,0.15000001,129.84,129.79,7.70475383]
[1765117488376,16.308864,129.88,129.79,8.41475383]
[1765117488377,0.15000001,129.88,129.79,8.41475383]
[1765117488672,17.0179133,129.91,129.71,7.70911229]
[1765117488673,0.15000001,129.89,129.71,7.70911229]
[1765117488842,0.15000001,129.73,129.61,0.71]
[1765117489040,0.15000001,129.7,129.63,7.71384354]
[1765117489267,0.15000001,129.7,129.57,0.71]
[1765117489268,0.15000001,129.67,129.6,19.2890559]
[1765117489486,0.15000001,129.67,129.55,13.36758489]
[1765117489696,0.08997422,129.62,129.56,7.71843161]
[1765117489848,0.08997422,129.54,129.52,7.72023217]
[1765117490191,0.08997422,129.56,129.47,27.03214114]
[1765117490501,0.08997422,129.56,129.47,7.72322076]
[1765117490661,0.08997422,129.57,129.48,0.66]
[1765117491045,0.08997422,129.56,129.48,0.66]
[1765117491346,0.01349613,129.45,129.37,7.72976733]
[1765117491546,1.0,129.47,129.46,0.1]
[1765117491748,16.308864,129.51,129.36,6.33014743]
[1765117492070,27.039555,129.44,129.2,19.3485198]
[1765117492239,16.308864,129.4,129.2,7.73993808]
[1765117492441,16.308864,129.39,129.13,4.04008263]
[1765117492655,1.0,129.28,129.15,8.40269249]
[1765117492854,16.308864,129.34,129.15,8.40269249]
[1765117492855,16.308864,129.34,129.19,7.74007402]
[1765117493060,0.5,129.33,129.19,27.091417]
[1765117493367,16.308864,129.29,129.14,7.74305144]
[1765117493594,16.308864,129.29,129.1,24.36378736]
[1765117493595,16.308864,129.29,129.1,5.0]
[1765117493899,16.308864,129.23,129.1,5.0]
[1765117494179,1.0,129.12,129.0,12.4079]
[1765117494343,1.0,129.05,129.0,11.9079]
[1765117494665,16.308864,129.03,129.0,11.9079]
[1765117494858,1.0,129.02,128.8,81.15948554]
[1765117495169,75.0,129.07,128.94,7.75542558]
[1765117495367,75.0,129.07,128.91,0.66]
[1765117495670,75.0,129.06,128.91,0.66]
[1765117495868,75.0,129.06,129.0,7.75148994]
[1765117496093,75.0,129.11,129.02,7.75073631]
[1765117496377,9.74,129.2,129.05,16.308864]
[1765117496378,75.0,129.18,129.05,16.308864]
[1765117496847,9.76,129.19,129.03,0.66]
[1765117497168,1.0,129.22,128.98,7.7526416]
[1765117497169,1.0,129.14,128.98,7.7526416]
[1765117497343,9.78,129.18,129.01,7.75087291]
[1765117497548,16.308864,129.14,129.01,8.41087291]
[1765117497748,75.0,129.13,129.02,0.66]
[1765117498044,75.0,129.18,129.04,16.308864]
[1765117498244,7.7370527,129.25,129.05,27.12127082]
[1765117498572,9.82,129.28,129.06,0.66]
[1765117498875,75.0,129.27,129.08,16.308864]
[1765117499080,75.0,129.32,129.1,16.308864]
[1765117499283,75.0,129.29,129.1,16.308864]
[1765117499450,75.0,129.34,129.11,0.66]
[1765117499653,84.9,129.34,129.11,0.66]
[1765117499987,9.9,129.34,129.11,0.66]
[1765117500175,75.0,129.32,129.15,16.308864]
[1765117500347,75.0,129.34,129.15,16.308864]
[1765117500563,25.90786766,129.35,129.16,0.7]
[1765117500771,25.40786766,129.35,129.16,0.7]
[1765117501796,9.9,129.34,129.16,0.7]
[1765117501981,75.0,129.34,129.16,0.7]
[1765117502315,9.92,129.33,129.17,27.09607493]
[1765117502594,75.0,129.31,129.16,7.74200698]
[1765117502893,75.0,129.23,129.12,7.74446828]
[1765117503091,9.94,129.22,129.11,0.7]
[1765117503389,16.308864,129.21,129.13,7.7438834]
[1765117503570,9.94,129.22,129.07,0.7]
[1765117503767,1.0,129.17,128.96,0.7]
[1765117503996,91.308864,129.16,128.97,0.7]
[1765117504231,16.308864,129.16,128.98,65.90169017]
[1765117504406,75.0,129.16,128.98,65.90169017]
[1765117504568,16.308864,129.15,129.01,16.308864]
[1765117504769,75.0,129.17,128.99,0.7]
[1765117504970,9.94,129.21,129.01,16.308864]
[1765117505170,9.94,129.21,128.99,0.7]
[1765117505379,75.0,129.11,128.98,7.75314002]
[1765117505671,9.96,129.1,128.99,0.7]
[1765117506194,16.308864,129.07,128.99,7.75253895]
[1765117506381,9.96,129.1,129.0,0.7]
[1765117506707,16.308864,129.05,128.93,0.7]
[1765117506908,16.308864,128.98,128.9,0.03956555]
[1765117507079,16.308864,128.94,128.9,0.03956555]
[1765117507699,16.308864,128.94,128.77,0.7]
[1765117507700,75.0,128.92,128.77,0.7]
[1765117508008,172.98967751,128.94,128.78,27.17813324]
[1765117508206,22.98967751,128.94,128.78,27.17813324]
[1765117508411,22.98967751,128.94,128.79,0.7]
[1765117508617,16.308864,128.91,128.79,0.7]
[1765117508819,75.0,129.03,128.79,0.7]
[1765117509117,10.0,129.12,128.82,9.50994492]
[1765117509313,10.0,129.12,128.86,75.0]
[1765117509518,10.0,129.12,128.87,85.0]
[1765117509685,10.0,129.12,128.87,44.25992914]
[1765117509886,10.0,129.16,128.88,0.7]
[1765117510085,10.0,129.16,128.9,75.0]
[1765117510311,150.0,129.14,128.89,65.94770733]
[1765117510497,18.74258296,129.16,128.89,65.94770733]
[1765117510686,75.0,129.12,128.9,0.7]
[1765117511008,25.11880892,129.05,128.9,0.7]
[1765117511197,8.80994492,129.0,128.9,0.7]
[1765117511507,16.308864,129.0,128.9,0.7]
[1765117511745,16.308864,128.96,128.89,7.7585538]
[1765117512008,10.0,128.97,128.77,10.02]
[1765117512208,10.0,128.97,128.9,7.7579519]
[1765117512413,16.308864,128.94,128.82,7.76231643]
[1765117512612,16.308864,128.88,128.76,0.7]
[1765117512813,16.308864,128.84,128.75,19.41657335]
[1765117513112,16.308864,128.8,128.72,3.94756199]
[1765117513284,16.308864,128.76,128.72,2.96123479]
[1765117513484,75.0,128.74,128.55,23.30220442]
[1765117513683,75.0,128.8,128.65,0.1]
[1765117513684,75.0,128.79,128.65,0.1]
[1765117513883,8.80994492,128.71,128.65,0.1]
[1765117514112,8.80994492,128.71,128.66,0.7]
[1765117514408,16.308864,128.8,128.65,0.1]
[1765117514409,83.80994492,128.8,128.7,16.308864]
[1765117514610,150.0,128.84,128.7,16.308864]
[1765117514909,85.74,128.86,128.7,16.308864]
[1765117515100,0.7,128.85,128.7,16.308864]
[1765117515306,1.0,128.83,128.68,6.54994492]
[1765117515528,16.308864,128.79,128.68,6.54994492]
[1765117515807,16.308864,128.73,128.65,7.87278977]
[1765117516014,26.408864,128.73,128.65,0.1]
[1765117516191,0.29209673,128.67,128.65,0.1]
[1765117516697,16.60096073,128.67,128.61,0.7]
[1765117516896,0.29209673,128.67,128.62,0.7]
[1765117517095,0.29209673,128.67,128.55,27.22676001]
[1765117517399,16.308864,128.65,128.53,7.77990786]
[1765117517601,0.52,128.66,128.55,7.77907429]
[1765117517793,16.308864,128.65,128.55,7.77907429]
[1765117517990,16.308864,128.6,128.52,105.53340113]
[1765117518226,75.29209673,128.67,128.55,7.77907429]
[1765117518423,8.80994492,128.66,128.55,7.77907429]
[1765117518593,8.80994492,128.66,128.58,16.308864]
[1765117518594,75.0,128.64,128.58,16.308864]
[1765117518794,75.0,128.65,128.58,16.308864]
[1765117519123,1e-08,128.67,128.58,16.308864]
[1765117519321,75.0,128.76,128.58,16.308864]
[1765117519627,11.2,128.75,128.55,7.77907429]
[1765117519823,16.308864,128.72,128.56,0.7]
[1765117520023,10.2,128.75,128.57,8.80994492]
[1765117520203,0.62,128.74,128.57,27.22252468]
[1765117520523,92.96745715,128.75,128.52,105.53340113]
[1765117520524,16.308864,128.63,128.52,105.53340113]
[1765117520722,10.28,128.64,128.53,0.72]
[1765117520924,16.308864,128.7,128.57,7.77786419]
[1765117521143,75.0,128.68,128.53,0.72]
[1765117521416,75.0,128.7,128.54,0.72]
[1765117521417,8.80994492,128.62,128.54,0.72]
[1765117521624,16.308864,128.67,128.54,0.72]
[1765117521801,16.308864,128.67,128.52,124.98497291]
[1765117521802,16.308864,128.63,128.52,105.53340113]
[1765117522008,1.0,128.59,128.52,58.90197767]
[1765117522204,26.688864,128.62,128.52,66.68239877]
[1765117522421,8.80994492,128.59,128.52,12.19326476]
[1765117522724,1.0,128.54,128.52,12.19326476]
[1765117522926,10.4,128.54,128.52,12.19326476]
[1765117523091,1.0,128.5,128.35,3.98806278]
[1765117523289,1.0,128.49,128.35,3.98806278]
[1765117523494,8.80994492,128.51,128.35,4.70806278]
[1765117523697,75.0,128.44,128.35,3.98806278]
[1765117523934,85.42,128.44,128.35,3.98806278]
[1765117524422,16.308864,128.4,128.35,3.98806278]
[1765117524718,75.0,128.42,128.32,0.64124911]
[1765117524922,8.80994492,128.45,128.35,7.79060127]
[1765117525123,75.0,128.46,128.38,16.308864]
[1765117525333,75.0,128.39,128.38,16.308864]
[1765117525627,75.0,128.54,128.38,16.308864]